Cogmind - Beta 10.2 --- EXPLORER MODE // 2020.11.12 @ 12:55:36 // Halloween2020/ForbiddenLore Player: 1Q84 Result: Destroyed by I3-SUB(g) with Beamcaster Performance ------------- Evolutions (3) 1500 Regions Visited (8) 1600 Robots Destroyed (27) 135 Value Destroyed (864) 864 Prototype IDs (23) 460 Alien Tech Used (0) 0 Bonus (600) 600 TOTAL SCORE: 5159 Bonus ------- Aligned with FarCom 300 Met Imprinter 300 Cogmind --------- Core Integrity 0/700 Matter 77/300 Energy 100/100 System Corruption 7% Temperature Cool (9) Movement Core (550) Ox10 Location -6/Zion Parts ------- > --- POWER (1) -------- (None) > --- PROPULSION (4) --- (None) > --- UTILITY (7) ------ Large Storage Unit Large Storage Unit > --- WEAPON (2) ------- (None) > --- INVENTORY (16) --- Improved Carbon-fiber Leg Improved Medium Armor Plating Makeshift Hacking Suite Makeshift System Restoration Module Particle Gun Advanced Beam Rifle Makeshift Laser Advanced Beam Cannon Heavy Battle Rifle Makeshift Shrapnel Gun Assault Cannon Heavy Missile Launcher Dirty Datajack Makeshift Axe Longsword +1 Peak State ------------ > --- POWER ------------ Micro Nuclear Core > --- PROPULSION ------- Aluminum Leg Titanium Leg Improved Carbon-fiber Leg Improved Carbon-fiber Leg > --- UTILITY ---------- Medium Storage Unit Large Storage Unit Large Storage Unit Makeshift Terrain Scan Processor Transmission Jammer ECM Suite Improved Medium Armor Plating > --- WEAPON ----------- High-powered Shotgun Rocket Launcher > --- INVENTORY -------- Improved Carbon-fiber Leg Improved Medium Armor Plating Makeshift Hacking Suite Makeshift System Restoration Module Particle Gun Advanced Beam Rifle Makeshift Laser Advanced Beam Cannon Heavy Battle Rifle Makeshift Shrapnel Gun Assault Cannon Heavy Missile Launcher Dirty Datajack Makeshift Axe Longsword +1 [Rating: 42] Favorites ----------- Power Micro Nuclear Core Engine Light Ion Engine Power Core Micro Nuclear Core Propulsion Aluminum Leg Leg Aluminum Leg Utility Large Storage Unit Device ECM Suite Storage Large Storage Unit Processor Makeshift Terrain Scan Processor Protection Improved Medium Armor Plating Weapon High-powered Shotgun Energy Gun EM Pulse Gun Ballistic Gun High-powered Shotgun Ballistic Cannon Assault Cannon Launcher Rocket Launcher Build | -11 -10 -10 -10 -9 -8 -7 -7 -6 ------- Run | Scr Mat Min Exi Min Mat Fac Low Zio Slots Evolved 7 | . 1 . . . 4 2 . . Power . | . . . . . . . . . Propulsion 2 | . . . . . 2 . . . Utility 5 | . 1 . . . 2 2 . . Weapon . | . . . . . . . . . Parts Attached 27 | 7 4 . . . 7 4 2 3 Power 3 | 1 . . . . 1 . 1 . Engine 1 | 1 . . . . . . . . Core 2 | . . . . . 1 . 1 . Reactor . | . . . . . . . . . Propulsion 9 | 2 1 . . . 2 3 . 1 Treads . | . . . . . . . . . Leg 9 | 2 1 . . . 2 3 . 1 Wheel . | . . . . . . . . . Hover . | . . . . . . . . . Flight . | . . . . . . . . . Utility 8 | 2 1 . . . 2 1 . 2 Device 3 | 1 . . . . 1 1 . . Storage 3 | 1 1 . . . . . . 1 Processor 1 | . . . . . . . . 1 Hackware . | . . . . . . . . . Protection 1 | . . . . . 1 . . . Artifact . | . . . . . . . . . Weapon 7 | 2 2 . . . 2 . 1 . Energy Gun 4 | 2 2 . . . . . . . Energy Cannon . | . . . . . . . . . Ballistic Gun 1 | . . . . . 1 . . . Ballistic Cannon 1 | . . . . . 1 . . . Launcher 1 | . . . . . . . 1 . Special Weapon . | . . . . . . . . . Impact Weapon . | . . . . . . . . . Slashing Weapon . | . . . . . . . . . Piercing Weapon . | . . . . . . . . . Special Melee Weapon . | . . . . . . . . . Unidentified Prototypes . | . . . . . . . . . Parts Lost 17 | . 3 . . . 1 1 . 12 Power 3 | . 1 . . . . 1 . 1 Propulsion 4 | . . . . . . . . 4 Utility 5 | . . . . . . . . 5 Weapon 5 | . 2 . . . 1 . . 2 Highest Loss Streak 12 | . 1 . . . 1 1 . 12 Average Slot Usage (%) 91 | . 94 87 87 87 87 86 92 97 Engine 1 | . 10 . . . . . . . Core 4 | . . . . . 7 6 7 6 Leg 26 | . 25 25 25 25 27 28 28 26 Device 14 | . 12 12 12 12 14 15 21 13 Storage 19 | . 21 25 25 25 16 14 14 20 Processor 2 | . . . . . . . . 6 Protection 4 | . . . . . 4 7 7 6 Energy Gun 9 | . 24 25 25 25 5 . . . Ballistic Gun 4 | . . . . . 3 7 7 6 Ballistic Cannon 1 | . . . . . 6 7 1 . Launcher 2 | . . . . . . . 5 6 Naked Turns . | . . . . . . . . . Heaviest Build 62 | 15 33 30 30 30 48 49 50 62 Greatest Support 63 | 20 20 20 20 20 47 63 63 63 Greatest Overweight (x) 13 | 1 1 1 1 1 1 1 . 13 Average Overweight (x) . | . . 1 1 1 . . . . Largest Inventory Capacity 20 | 8 14 14 14 14 14 14 14 20 Average Capacity 15 | 6 12 14 14 14 14 14 14 19 Most Carried 15 | 1 3 3 4 6 10 14 14 15 Average Carried 9 | . 1 3 3 5 8 12 13 14 Final Capacity 16 | 8 14 14 14 14 14 14 14 16 Final Carried 15 | 1 3 3 4 6 10 14 14 15 Class Distribution -------------------- 100% | Hacker-Mutant Dominant Class ---------------- Hacker-Mutant | -10/Materials Hacker-Mutant | -10/Mines Hacker-Mutant | -10/Exiles Hacker-Mutant | -9/Mines Hacker-Mutant | -8/Materials Hacker-Mutant | -7/Factory Hacker-Mutant | -7/Lower Caves Hacker-Mutant | -6/Zion Resources | -11 -10 -10 -10 -9 -8 -7 -7 -6 ----------- Run | Scr Mat Min Exi Min Mat Fac Low Zio Matter Collected 518 | 196 109 . . . 163 . 50 . Remotely . | . . . . . . . . . Salvage Created 868 | . 398 . . . 291 100 79 . Parts 54 | . 20 . . . 24 5 5 . Haulers Intercepted . | . . . . . . . . . Recyclers Shooed 1 | . . . . . 1 . . . Parts Field Recycled . | . . . . . . . . . Retrieved Matter . | . . . . . . . . . Parts Self-Destructed . | . . . . . . . . . Prevented . | . . . . . . . . . Kills | -11 -10 -10 -10 -9 -8 -7 -7 -6 ------- Run | Scr Mat Min Exi Min Mat Fac Low Zio Combat Hostiles Destroyed 23 | . 9 . . . 8 3 3 . Guns 12 | . 9 . . . 2 . 1 . Cannons 9 | . . . . . 6 3 . . AOE 1 | . . . . . . . 1 . Classes Destroyed 7 | . 3 . . . 2 2 . . Worker 1 | . . . . . 1 . . . Builder 3 | . 1 . . . 2 . . . Swarmer 6 | . 2 . . . 2 . 2 . Grunt 12 | . 7 . . . 4 1 . . Brawler 1 | . . . . . . 1 . . Duelist 1 | . . . . . . 1 . . Sentry 3 | . . . . . 2 . 1 . Best Kill Streak 5 | . 5 . . . 5 2 2 . Combat Bots Only 5 | . 5 . . . 3 2 2 . Max Kills in Single Turn 1 | . 1 . . . 1 1 1 . Gunslinging . | . . . . . . . . . Exploded 1 | . . . . . . . 1 . Melee . | . . . . . . . . . Uniques/NPCs Destroyed . | . . . . . . . . . Combat | -11 -10 -10 -10 -9 -8 -7 -7 -6 -------- Run | Scr Mat Min Exi Min Mat Fac Low Zio Damage Taken 2901 | . 378 . . . 308 360 301 1554 Core 794 | . 68 . . . 26 57 16 627 Absorbed by Shields . | . . . . . . . . . Core Remaining (%) 89 | 100 . . . 72 95 . . . Volleys Fired 81 | . 41 . . . 22 12 6 . Largest 2 | . 2 . . . 2 2 2 . Hottest 105 | . 105 . . . 84 69 58 . Shots Fired 142 | . 68 . . . 38 24 12 . Gun 102 | . 68 . . . 16 12 6 . Cannon 34 | . . . . . 22 12 . . Launcher 6 | . . . . . . . 6 . Special . | . . . . . . . . . Kinetic 65 | . . . . . 35 24 6 . Thermal 45 | . 45 . . . . . . . Explosive 6 | . . . . . . . 6 . Electromagnetic 26 | . 23 . . . 3 . . . Robot Hit Streak 28 | . 12 . . . 28 14 7 . Robot Miss Streak 2 | . 2 . . . 2 2 2 . Penetration Max . | . . . . . . . . . Secondary Targets . | . . . . . . . . . Shots Hit Robots 115 | . 51 . . . 33 23 8 . Core Hits 50 | . 17 . . . 19 8 6 . Critical Hits . | . . . . . . . . . Critical Kills . | . . . . . . . . . Critical Parts Destroyed . | . . . . . . . . . Melee Attacks . | . . . . . . . . . Impact . | . . . . . . . . . Slashing . | . . . . . . . . . Piercing . | . . . . . . . . . Sneak Attacks . | . . . . . . . . . Combat Hostiles . | . . . . . . . . . Follow-up Attacks . | . . . . . . . . . Damage Inflicted 2203 | . 675 . . . 774 530 224 . Guns 1345 | . 675 . . . 344 233 93 . Cannons 727 | . . . . . 430 297 . . Explosions 117 | . . . . . . . 117 . Melee . | . . . . . . . . . Ramming 14 | . . . . . . . 14 . Kinetic 1366 | . . . . . 743 530 93 . Thermal 412 | . 412 . . . . . . . Explosive 117 | . . . . . . . 117 . Electromagnetic 294 | . 263 . . . 31 . . . Impact . | . . . . . . . . . Slashing . | . . . . . . . . . Piercing . | . . . . . . . . . Highest Corruption 7 | . . . . . . 1 1 7 Average Corruption 1 | . . . . . . 1 1 1 Corruption Purged . | . . . . . . . . . Effects 6 | . . . . . . . 4 2 Message Errors 3 | . . . . . . . 3 . Heat Flow Errors 1 | . . . . . . . . 1 Energy Discharges 1 | . . . . . . . . 1 Targeting Errors 1 | . . . . . . . 1 . Overload Shots . | . . . . . . . . . Overflow Damage 6 | . . . . . . 6 . . Projectiles 6 | . . . . . . 6 . . Explosions . | . . . . . . . . . Melee . | . . . . . . . . . Knockbacks 6 | . . . . . 4 2 . . Impact . | . . . . . . . . . Kinetic 6 | . . . . . 4 2 . . Secondary . | . . . . . . . . . Self-Inflicted Damage 38 | . . . . . . . 38 . Shots 2 | . . . . . . . 2 . Rammed 2 | . . . . . . . 1 1 Targets Rammed 4 | . . . . . . . 3 1 Kicked 2 | . . . . . . . 2 . Crushed . | . . . . . . . . . Highest Temperature 272 | . 272 . . . 60 17 212 86 Average Temperature 92 | . 126 . . . 20 10 106 34 Received Heat Transfer 1095 | . 291 . . . 216 150 108 330 Effects 1 | . 1 . . . . . . . Energy Bleed 1 | . 1 . . . . . . . Siege Activations . | . . . . . . . . . Robots Corrupted . | . . . . . . . . . Combat Hostiles . | . . . . . . . . . Parts Fried 1 | . 1 . . . . . . . Impact Corruptions . | . . . . . . . . . Robots Melted . | . . . . . . . . . Combat Hostiles . | . . . . . . . . . Parts Melted 1 | . 1 . . . . . . . Heat Transferred 1125 | . 1125 . . . . . . . Parts Sabotaged . | . . . . . . . . . Parts Stolen . | . . . . . . . . . Parts Stripped . | . . . . . . . . . Power Chain Reactions . | . . . . . . . . . Missiles Intercepted . | . . . . . . . . . Alert | -11 -10 -10 -10 -9 -8 -7 -7 -6 ------- Run | Scr Mat Min Exi Min Mat Fac Low Zio Peak Influence 348 | . 348 30 . . 170 90 . . Initial 51 | . . 30 . . . 51 . . Average 66 | . 155 30 . . 43 62 . . Maximum Alert Level 1 | . 1 . . . . . . . Low Security (%) 87 | 100 51 100 . 100 100 100 . . Level 1 12 | . 48 . . . . . . . Level 2 . | . . . . . . . . . Level 3 . | . . . . . . . . . Level 4 . | . . . . . . . . . Level 5 . | . . . . . . . . . High Security . | . . . . . . . . . Max Security . | . . . . . . . . . Squads Dispatched 6 | . 2 . . . 2 2 . . Investigation 4 | . 2 . . . 1 1 . . Extermination 1 | . . . . . . 1 . . Reinforcement 1 | . . . . . 1 . . . Assault . | . . . . . . . . . Garrison . | . . . . . . . . . Intercept . | . . . . . . . . . Construction Impeded . | . . . . . . . . . Haulers Reinforced . | . . . . . . . . . Stealth | -11 -10 -10 -10 -9 -8 -7 -7 -6 --------- Run | Scr Mat Min Exi Min Mat Fac Low Zio Distress Signals 4 | . . . . . 3 1 . . Communications Jammed 15 | . . . . . . 15 . . Distress Signals 15 | . . . . . . 15 . . Times Spotted 70 | . 24 . . . 17 7 3 19 Peak Tracking Total 19 | . 4 . . . 4 4 2 19 Tactical Retreats 8 | . 6 . . . 1 . . 1 Traps | -11 -10 -10 -10 -9 -8 -7 -7 -6 ------- Run | Scr Mat Min Exi Min Mat Fac Low Zio Traps Triggered 1 | . . . . . . 1 . . Indirectly . | . . . . . . . . . Trap Hack Attempts . | . . . . . . . . . Triggered . | . . . . . . . . . Disarmed . | . . . . . . . . . Reprogrammed 16 | . 16 . . . . . . . Reused 5 | . 5 . . . . . . . Traps Extracted . | . . . . . . . . . Installed . | . . . . . . . . . Triggered 9 | . 5 . . . . . 4 . Machines | -11 -10 -10 -10 -9 -8 -7 -7 -6 ---------- Run | Scr Mat Min Exi Min Mat Fac Low Zio Machines Disabled 1 | . . . . . 1 . . . Max in Single Turn 1 | . . . . . 1 . . . Machines Sabotaged . | . . . . . . . . . Garrisons Compromised . | . . . . . . . . . Overloaded Fab Kills . | . . . . . . . . . Fab Network Shutdowns . | . . . . . . . . . Hacking | -11 -10 -10 -10 -9 -8 -7 -7 -6 --------- Run | Scr Mat Min Exi Min Mat Fac Low Zio Machines Accessed 12 | . 6 . 1 . 1 2 2 . Terminals 8 | . 6 . . . 1 1 . . Fabricators . | . . . . . . . . . Repair Stations . | . . . . . . . . . Recycling Units . | . . . . . . . . . Scanalyzers 1 | . . . . . . 1 . . Garrison Access . | . . . . . . . . . Total Hacks 42 | . 22 . 1 . 5 6 8 . Successful 29 | . 14 . 1 . . 6 8 . Failed 13 | . 8 . . . 5 . . . Catastrophic . | . . . . . . . . . Database Lockouts . | . . . . . . . . . Manual 28 | . 18 . 1 . 5 4 . . Terminals 31 | . 22 . . . 5 4 . . Fabricators . | . . . . . . . . . Repair Stations . | . . . . . . . . . Recycling Units . | . . . . . . . . . Scanalyzers 2 | . . . . . . 2 . . Garrison Access . | . . . . . . . . . Terminal Hacks 19 | . 9 . 1 . . 1 8 . Record 7 | . . . . . . . 7 . Open Door 1 | . . . . . . . 1 . Terminal Index 2 | . 1 . . . . 1 . . Locate Traps 3 | . 3 . . . . . . . Reprogram Traps 3 | . 3 . . . . . . . Reinforcement Status 1 | . 1 . . . . . . . Recall Reinforcements 1 | . 1 . . . . . . . EX-Prototype ID Bank 1 | . . . 1 . . . . . Fabricator Hacks . | . . . . . . . . . Repair Station Hacks . | . . . . . . . . . Recycling Unit Hacks . | . . . . . . . . . Scanalyzer 2 | . . . . . . 2 . . Insert Component 1 | . . . . . . 1 . . Analyze 1 | . . . . . . 1 . . Garrison Access Hacks . | . . . . . . . . . Unauthorized Hacks 8 | . 5 . . . . 3 . . Terminals 8 | . 5 . . . . 3 . . Track 1 | . . . . . . 1 . . Botnet 6 | . 5 . . . . 1 . . Operators 1 | . . . . . . 1 . . Fabricators . | . . . . . . . . . Repair Stations . | . . . . . . . . . Recycling Units . | . . . . . . . . . Scanalyzers . | . . . . . . . . . Garrison Access . | . . . . . . . . . Data Cores Recovered . | . . . . . . . . . Used . | . . . . . . . . . Hacking Detections 8 | . 5 . . . 1 2 . . Full Trace Events 5 | . 3 . . . 1 1 . . Feedback Events . | . . . . . . . . . Feedback Blocked . | . . . . . . . . . Robot Schematics Acquired . | . . . . . . . . . Robots Built . | . . . . . . . . . Matter . | . . . . . . . . . Time . | . . . . . . . . . Total Robot Build Rating . | . . . . . . . . . Part Schematics Acquired 1 | . . . . . . 1 . . Parts Built . | . . . . . . . . . Matter . | . . . . . . . . . Time . | . . . . . . . . . Total Part Build Rating . | . . . . . . . . . Parts Repaired . | . . . . . . . . . Time . | . . . . . . . . . Parts Recycled . | . . . . . . . . . Recycled Matter . | . . . . . . . . . Retrieved Matter . | . . . . . . . . . Retrieved Components . | . . . . . . . . . Parts Scanalyzed 1 | . . . . . . 1 . . Part Schematics Acquired 1 | . . . . . . 1 . . Parts Damaged . | . . . . . . . . . Bothacking | -11 -10 -10 -10 -9 -8 -7 -7 -6 ------------ Run | Scr Mat Min Exi Min Mat Fac Low Zio Used RIF Installer . | . . . . . . . . . Robots Hacked . | . . . . . . . . . Non-combat . | . . . . . . . . . Combat . | . . . . . . . . . Robot Hacks Applied . | . . . . . . . . . Relay Couplers Released . | . . . . . . . . . Robots Rewired . | . . . . . . . . . Allies Hacked . | . . . . . . . . . Hacks Repelled . | . . . . . . . . . Allies | -11 -10 -10 -10 -9 -8 -7 -7 -6 -------- Run | Scr Mat Min Exi Min Mat Fac Low Zio Total Allies 7 | . . 2 . . . . 2 3 Largest Group 3 | . . 2 2 . . . 2 3 Highest-Rated Group 93 | . . 49 49 . . . 62 93 Highest-Rated Ally 31 | . . 31 31 . . . 31 31 Total Orders . | . . . . . . . . . Ally Attacks . | . . . . . . . . . Total Damage . | . . . . . . . . . Kills . | . . . . . . . . . Allies Corrupted . | . . . . . . . . . Allies Melted . | . . . . . . . . . Intel | -11 -10 -10 -10 -9 -8 -7 -7 -6 ------- Run | Scr Mat Min Exi Min Mat Fac Low Zio Robot Analysis Total . | . . . . . . . . . Derelict Logs Recovered 2 | . . . . . . . . 2 Drone Launches . | . . . . . . . . . Drone Recoveries . | . . . . . . . . . Exploration | -11 -10 -10 -10 -9 -8 -7 -7 -6 ------------- Run | Scr Mat Min Exi Min Mat Fac Low Zio Turns Passed 4865 | 56 623 314 352 355 606 464 645 1450 Spaces Moved 3360 | 41 321 198 235 236 347 327 505 1150 Core 11 | 8 . . . . . . . 3 Treads . | . . . . . . . . . Legs 3349 | 33 321 198 235 236 347 327 505 1147 Wheels . | . . . . . . . . . Hover . | . . . . . . . . . Flight . | . . . . . . . . . Fastest Speed 50 | 50 120 150 150 150 123 122 122 122 Average Speed 133 | 111 141 150 150 150 147 125 122 124 Slowest Speed 700 | 120 150 150 150 150 153 152 122 700 Overloaded Moves . | . . . . . . . . . Propulsion Burnouts . | . . . . . . . . . Robots Hopped . | . . . . . . . . . Cave-ins Triggered . | . . . . . . . . . Exploration Rate (%) 47 | 4 49 48 68 44 38 13 70 89 Regions Visited 8 Branch Regions 5 Pre-discovered Areas 1 | . . . . . . . . 1 Known Exits Taken 7 | 1 1 1 1 1 1 1 . . Unknown Exits Taken 1 | . . . . . . . 1 . Scrap Searched . | . . . . . . . . . Spaces Dug . | . . . . . . . . . Terrain Destroyed 18 | . . . . . 1 . 17 . Melee . | . . . . . . . . . Projectile 1 | . . . . . 1 . . . AOE 17 | . . . . . . . 17 . Terrain Rammed . | . . . . . . . . . Walls Destroyed . | . . . . . . . . . Machines Disabled . | . . . . . . . . . Actions | -11 -10 -10 -10 -9 -8 -7 -7 -6 --------- Run | Scr Mat Min Exi Min Mat Fac Low Zio Total 3593 | 48 419 215 235 237 400 354 520 1165 Wait 105 | . 52 18 . . 20 9 4 2 Move 3352 | 40 320 197 234 235 346 326 504 1150 Hop . | . . . . . . . . . Pick Up 18 | 1 2 . 1 2 4 2 1 5 Fast Attach 17 | 7 2 . . . 6 1 . 1 Attach 4 | . 1 . . . 1 . 1 1 Detach 1 | . . . . . 1 . . . Swap 6 | . 1 . . . . 3 1 1 Drop 5 | . . . . . . 1 . 4 Fire 81 | . 41 . . . 22 12 6 . Melee . | . . . . . . . . . Ram 1 | . . . . . . . . 1 Kick 3 | . . . . . . . 3 . Crush . | . . . . . . . . . Escape Stasis . | . . . . . . . . . Rewire . | . . . . . . . . . Trap . | . . . . . . . . . Miscellaneous . | . . . . . . . . . Route ------- -11/Scrapyard -10/Materials -10/Mines (discovered 2 exits: *Mat / *Exi) -10/Exiles -9/Mines -8/Materials (discovered 2 exits: *Fac x2) -7/Factory -7/Lower Caves (discovered 2 exits: *Low / *Zio) -6/Zion (discovered 1 exit: *Pro) History --------- Turn | Location | Event 13 | -11/Scrapyard | Identified exit to Materials 13 | -11/Scrapyard | Discovered exit to Materials (range 15) 57 | -11/Scrapyard | Entered Materials 57 | -10/Materials | Evolved 1 slot: Utility x1 306 | -10/Materials | Build established: Hacker-Mutant 637 | -10/Materials | Identified exit to Mines 637 | -10/Materials | Discovered exit to Mines (range 16) 680 | -10/Materials | Entered Mines 737 | -10/Mines | Identified exit to Materials 737 | -10/Mines | Discovered exit to Materials (range 7) 979 | -10/Mines | Deemed a non-threat by the Exiles lab entrance 980 | -10/Mines | Identified exit to Exiles 980 | -10/Mines | Discovered exit to Exiles (range 5) 994 | -10/Mines | Entered Exiles 994 | -10/Exiles | Accompanied by 2 allies 1024 | -10/Exiles | Led the pair of lost Derelicts to a safe place 1030 | -10/Exiles | Met 8R-AWN 1054 | -10/Exiles | Met EX-HEX 1098 | -10/Exiles | Met EX-BIN 1117 | -10/Exiles | Aligned with FarCom system 1119 | -10/Exiles | Given EX-Vault access code 1155 | -10/Exiles | Opened EX-Vault 1165 | -10/Exiles | Found Longsword +1 1198 | -10/Exiles | Warned to stay clear of 0b10 Research branches 1237 | -10/Exiles | Met EX-DEC 1330 | -10/Exiles | Identified exit to Mines 1330 | -10/Exiles | Discovered exit to Mines (range 14) 1346 | -10/Exiles | Left Exiles lab with Longsword +1 1346 | -10/Exiles | Entered Mines 1366 | -9/Mines | A weapon hastily lodged in a ceiling crevice suddenly fell to the ground 1653 | -9/Mines | Identified exit to Materials 1653 | -9/Mines | Discovered exit to Materials (range 9) 1663 | -9/Mines | Received a Rocket Launcher from a helpful Derelict 1685 | -9/Mines | Assembled infested the area 1690 | -9/Mines | Assisted by a Guerilla fighting off Assembled 1701 | -9/Mines | Entered Materials 1701 | -8/Materials | Evolved 4 slots: Propulsion x2, Utility x2 1962 | -8/Materials | Identified exit to Factory 1962 | -8/Materials | Discovered exit to Factory (range 13) 2257 | -8/Materials | Discovered exit to Factory (range 16) 2307 | -8/Materials | Entered Factory 2307 | -7/Factory | Evolved 2 slots: Utility x2 2751 | -7/Factory | Identified exit to Lower Caves 2751 | -7/Factory | Discovered exit to Lower Caves (range 16) 2771 | -7/Factory | Entered Lower Caves 2875 | -7/Lower Caves | Encountered a Warlord checkpoint 3132 | -7/Lower Caves | Attracted the attention of an 0b10 checkpoint 3283 | -7/Lower Caves | A Derelict revealed a hidden shortcut to a safe place 3285 | -7/Lower Caves | Identified exit to Lower Caves 3285 | -7/Lower Caves | Discovered exit to Lower Caves (range 12) 3324 | -7/Lower Caves | A Commander dispatched an escort 3342 | -7/Lower Caves | Learned Factory trap positions 3342 | -7/Lower Caves | Learned Extension emergency access door positions 3342 | -7/Lower Caves | Learned Factory terminal intel 3342 | -7/Lower Caves | Learned Extension garrison access intel 3416 | -7/Lower Caves | Entered Zion 3416 | -6/Zion | Accompanied by 2 allies 3417 | -6/Zion | Commander's escort returned to base 3417 | -6/Zion | Commander's escort returned to base 3495 | -6/Zion | Identified exit to Proximity Caves 3495 | -6/Zion | Discovered exit to Proximity Caves (range 12) 3564 | -6/Zion | System corruption cleaned by Quarantine Array 3684 | -6/Zion | Learned location of Armory (-4) 3898 | -6/Zion | Received a visual enhancement algorithm 3926 | -6/Zion | Learned Factory security intel 4042 | -6/Zion | Rebuked by Imprinter 4269 | -6/Zion | Learned Factory emergency access door positions 4294 | -6/Zion | Gained Derelict followers 4782 | -6/Zion | Attempted to imprint without authorization 4782 | -6/Zion | Attacked by Zionites 4848 | -6/Zion | Core integrity fell below 50% 4861 | -6/Zion | Core integrity fell below 20% 4866 | -6/Zion | Destroyed by I3-SUB(g) with Beamcaster Last Messages --------------- 04840_ ECM Suite destroyed. 04840_ Imp. Carbon-fiber Leg destroyed. 04841_ Slammed into JH-5DD(z). 04844_ 8S-W67(z) pulls a Mak. Axe out of the Twisted Machinery. 04845_ Q2-9QY(z) destroyed. 04853_ H3-0R9(z) emerges from the Twisted Machinery. 04854_ H3-0R9(z) pulls a Mak. Axe out of the Twisted Machinery. 04860_ 6U-0EB(z) pulls a Mak. Spear out of the Twisted Machinery. J5-054(z) bursts out of the Twisted Machinery. KT-POH(z) bursts out of the Twisted Machinery. 04863_ Mak. Terrain Scan Processor destroyed. 04863_ System corrupted by crushing effect (+2). 04863_ KT-POH(z) pulls a Mak. Laser out of the Twisted Machinery. 04863_ Med. Storage Unit destroyed. 04863_ R5-SXI(M) IFF system glitched. 04863_ H3-0R9(z) destroyed. 04865_ J5-054(z) destroyed. 04865_ F8-ZFV(M) suffers critical hit. 04865_ F8-ZFV(M) destroyed. 04865_ YV-QD0(z) destroyed. Map ----- +----------------------------------------------------+ | ???????????#""""""""" """" | | ???????????####"#"#"""""" """"" " ""## | | ??????????????#####"##"""""""" """" """"" | | ??????????????????#####"#""" #"""""""""" | | ?????????????????????#####" """"#"""### | | ????????????????????##""""" """"" """###""#?? | | ????????????????????#"""""" ""#"" """#?####?? | | ????????????????????##"""" """""" """???????? | | ????????????????????#"" """" " #""???????? | | ????????????????????##" """" #""???????? | | ?????????????????????#"" "" "?????????? | | ?????????????????????##"" "" ""????????? | | ??????????????????????##" "" ?????????? | | ????????????????#######"" "" ?????????? | | ????????????????#""# "" """ ????????? | | ????????????????#" "" ""#"" ""????????? | | ????????????????#" " """"" """"??????? | | ????????????????#" " """ """""?????? | | ????????????????#""#X " """????? | | ????????????????####### "?????? | | ??????????????????????## """ "?????? | | ???????????????????????## """" ??????? | | ?????????######??????###### """ """??????? | | ??????"#"#""#""??????#"#### "" "#"??????? | | ??????"""#""""########"""%"= " ""#??????? | | #######""" """""""#"#""*z@//""" ""#??????? | | """"" #"#" """"" M*zzg z " ""#???????? | | """"" ##"" * M%= z " ""###?????? | | #""" [%= gM "" """""?????? | | " ##"" c """""""g """ ""######?? | | "" """""""#" z """ """"#"### | | "" "##"###"" """"" " """#"# | | "" ""####"" z ""#"" " """"" | | " ###" ""#?#""" """" ""#" | | #""" ""##""" """" """ """" | | """"" #""" """#"" "" | | """"" #""" """##" """ """"" | | ########"" ""##"" """" """#" | | ??#####""# ""##"" """"""" ""##""" "" "#" | | ?##"""#### #"##""""""##" """##""""""""" """" | | ?#" #"#?###"""""" """###"##""""#" """" | | ?#" #"#??# "#"#?#####"""#" ""## | | ?#" #????# ## ## """#??####""""" ""## | | ?## #### #???## # # """"###""""" ""#" | | ??# #??######???#" """ ""##""#"" ""# | | ### #####??????#"# """ """""""" """ | | "" """""??????### """ ""##""" "" | | ## "######?????#" # # """""" """ " | | " " " #???#"#" ## ## "##" """"" | | """ #???#""" """" """"" | +----------------------------------------------------+ Best States ------------- Heat Dissipation 34 Energy Generation 15 Energy Capacity 160 Matter Stores 300 Matter Capacity 300 Sight Range 16 Terrain Scan Density 135 ECM Strength 1 Jamming Range 8 Armor Coverage 225 Resistance: KI 35 Resistance: TH 35 Resistance: EX 35 Resistance: EM 35 Resistance: I 35 Resistance: S 35 Resistance: P 35 Evasion (%) 40 Offensive Hacking 20 Item Schematics ----------------- Imp. Medium Armor Plating | -7/Factory | Scanalyzed Robot Schematics ------------------ None Fabricated ------------ Nothing Alien Tech Used ----------------- None Achievements -------------- None Challenges ------------ None Game ------ Seed ActuatorHelicalAutogun Manual? 0 Play Time 00:30:52 Cumulative 85.8 hours Start 2020.11.12 @ 12:07:31 End 2020.11.12 @ 12:55:36 Sessions 1 Manual Loads 0 Difficulty Explorer Special Mode Halloween2020/ForbiddenLore Game No. 144 Rogue 0 Adventurer 0 Explorer 144 Win Type - Total 1 Types 1/0/0/0/0/0/0/0/0 Lore% 56 Gallery% 65 Achievement% 50 Wizard Run 0 Options --------- ASCII 0 Keyboard 0 Movement Numpad Keybinds 0 Fullscreen 1 Font 36/Smallcaps Map View 76x50 Tactical HUD 1 Map Filters NONE Filters NONE Steam 1 RUN: 6c640de2-d834-4256-a693-92ecb56bc2f4